bitfinex/quotes_ETHUSD_20250217
["timestamp","ask_amount","ask_price","bid_price","bid_amount"]
[1739771983581,0.276,2673.9,2673.7,3.74001]
[1739771984546,0.5693,2674.0,2673.7,3.74001]
[1739771984547,0.5693,2674.0,2673.7,4.488034]
[1739771984737,0.5693,2674.0,2673.6,3.74013]
[1739771984944,0.8453,2674.2,2673.9,3.7398]
[1739771985782,0.8453,2674.2,2673.6,0.7675]
[1739771986144,0.5693,2674.2,2673.9,3.73979]
[1739771986358,0.5693,2674.2,2674.0,3.73961]
[1739771986780,5.34,2674.3,2673.9,4.487772]
[1739771986983,5.34,2674.3,2673.9,4.487762]
[1739771987303,5.34,2674.3,2674.0,3.7397]
[1739771987513,0.13214596,2674.2,2674.0,3.7397]
[1739771987811,5.34,2674.3,2674.2,3.73943]
[1739771987953,5.47214596,2674.3,2674.2,3.73943]
[1739771988404,5.47214596,2674.3,2673.9,3.73974]
[1739771988708,0.13214596,2674.3,2674.1,3.73952]
[1739771991781,0.13214596,2674.3,2674.1,3.73951]
[1739771991988,0.13214596,2674.3,2674.2,0.373951]
[1739771992580,0.276,2674.5,2674.2,4.113381]
[1739771992750,0.13214596,2674.4,2674.2,0.373951]
[1739771993998,0.13214596,2674.4,2674.2,4.113351]
[1739771996067,0.13214596,2674.4,2674.3,3.73929]
[1739771996271,0.13214596,2674.4,2674.3,4.5245541]
[1739771996799,0.13297282,2674.4,2674.3,0.7852641]
[1739771997005,0.276,2674.7,2674.5,3.73899]
[1739771997181,0.13297282,2674.6,2674.5,3.73899]
[1739771999297,0.8453,2674.9,2674.7,3.73873]
[1739771999602,0.8453,2674.9,2674.4,0.7739]
[1739771999603,0.8453,2674.9,2674.5,3.73901]
[1739771999783,0.13297282,2674.7,2674.6,3.73884]
[1739771999983,0.8453,2674.9,2674.6,3.73884]
[1739772000386,0.8453,2674.9,2674.6,3.73881]
[1739772000705,0.276,2674.9,2674.7,3.73873]
[1739772000907,0.8453,2675.1,2674.7,3.73873]
[1739772001077,0.5693,2675.1,2674.7,3.73873]
[1739772001402,0.276,2675.2,2674.7,3.73873]
[1739772001611,0.276,2675.2,2674.6,3.73887]
[1739772001913,0.276,2675.2,2674.7,4.53949974]
[1739772002311,0.5693,2675.3,2674.7,0.80076974]
[1739772002609,1.1193,2674.8,2674.5,0.52981741]
[1739772002929,0.5693,2674.6,2673.8,3.73995]
[1739772003622,0.5693,2674.6,2673.6,0.7739]
[1739772003793,0.5693,2674.6,2673.6,4.51407]
[1739772003993,0.5693,2674.6,2673.6,4.965477]
[1739772004176,0.5693,2674.6,2673.7,3.0]
[1739772004503,0.5693,2674.6,2673.7,6.74]
[1739772004806,0.5693,2674.6,2673.7,3.0]
[1739772005007,0.5693,2674.6,2673.9,3.73973]
[1739772005708,0.5693,2674.6,2674.0,3.73958]
[1739772005913,0.276,2674.5,2674.1,3.73953]
[1739772006611,0.276,2674.5,2673.7,0.55]
[1739772007107,0.5693,2674.4,2673.7,6.74003]
[1739772007672,0.5693,2674.4,2673.7,3.0]
[1739772007911,0.5693,2674.4,2673.9,3.73976]
[1739772008112,0.5693,2674.4,2673.7,3.7965507]
[1739772009482,0.5693,2674.4,2673.7,7.5366707]
[1739772009682,0.5693,2674.4,2673.7,3.7965507]
[1739772010334,0.5693,2674.0,2673.1,0.8193]
[1739772010477,0.5693,2674.0,2673.2,3.74075]
[1739772010681,0.5693,2674.0,2673.2,7.48149]
[1739772011112,0.5693,2674.0,2673.4,3.74047]
[1739772011328,0.5693,2674.0,2673.2,3.74083]
[1739772011329,0.5693,2674.0,2673.2,7.48155]
[1739772011629,0.5693,2674.0,2673.3,3.74068]
[1739772012131,0.5693,2674.0,2673.4,3.74048]
[1739772012490,0.5693,2674.0,2673.6,3.74019]
[1739772013386,0.5693,2674.0,2673.5,0.55]
[1739772013797,0.5693,2674.0,2673.5,0.979051]
[1739772014122,0.5693,2674.0,2673.5,4.719411]
[1739772014989,0.5693,2674.0,2673.5,0.979051]
[1739772015189,0.5693,2674.0,2673.5,4.719371]
[1739772015386,0.5693,2674.0,2673.5,1.791751]
[1739772015602,0.5693,2674.0,2673.7,3.74]
[1739772015803,0.5693,2674.0,2673.8,3.73992]
[1739772016002,0.276,2674.1,2673.9,3.73977]
[1739772016325,0.5693,2674.2,2673.5,5.10308]
[1739772016732,0.5693,2674.2,2673.8,3.73996]
[1739772016890,0.5693,2674.2,2673.6,3.7402]
[1739772017089,0.5693,2674.2,2673.7,3.74002]
[1739772017520,0.5693,2674.2,2673.8,3.73996]
[1739772017820,0.13232568,2674.1,2674.0,3.73971]
[1739772018187,0.5693,2674.2,2673.8,3.73987]
[1739772018487,0.5693,2674.2,2673.8,3.73989]
[1739772018694,0.5693,2674.2,2673.9,3.73978]
[1739772019461,0.276,2674.3,2673.8,0.425018]
[1739772019723,0.13232568,2674.2,2673.9,3.73974]
[1739772019930,0.5693,2674.4,2674.1,3.73951]
[1739772020128,0.13232568,2674.3,2674.1,3.73951]
[1739772020299,0.13232568,2674.3,2674.1,8.308177]
[1739772020505,0.13232568,2674.3,2674.2,3.73943]
[1739772020924,0.13232568,2674.3,2674.1,0.829197]
[1739772021101,0.13232568,2674.3,2674.0,0.8127]
[1739772022034,0.13232568,2674.3,2673.7,0.8127]
[1739772022330,0.5693,2674.2,2673.5,3.74032]
[1739772022831,0.5693,2674.0,2673.5,3.74032]
[1739772023503,0.5693,2674.0,2673.2,1.5438757]
[1739772023708,0.5693,2674.0,2673.3,1.05938757]
[1739772023910,0.5693,2674.0,2673.4,3.74054]
[1739772023911,0.13239762,2673.9,2673.4,3.74054]
[1739772024107,0.5693,2674.0,2673.4,3.74054]
[1739772024700,0.5693,2674.0,2673.4,3.74047]
[1739772024901,0.5693,2674.0,2673.4,7.48093]
[1739772025102,0.5693,2674.0,2673.4,3.74046]
[1739772025302,0.5693,2674.0,2673.2,3.74073]
[1739772025515,0.70169762,2673.9,2673.2,3.74073]
[1739772025715,0.5693,2673.7,2673.0,3.74101]
[1739772025916,0.5693,2673.7,2673.0,3.74108]
[1739772026249,0.5693,2673.7,2673.1,3.74096]
[1739772026758,0.5693,2673.7,2673.2,3.74079]
[1739772027169,0.5693,2673.7,2673.0,3.74102]
[1739772027360,0.5693,2673.7,2673.0,3.741]
[1739772028439,0.5693,2673.7,2672.8,6.74131]
[1739772028648,0.5693,2673.6,2672.8,3.74131]
[1739772028949,0.70130205,2673.6,2672.7,3.74144]
[1739772029292,0.5693,2673.3,2672.5,3.74173]
[1739772029494,0.5693,2673.3,2672.7,3.74145]
[1739772029697,0.13193012,2673.2,2672.6,3.74161]
[1739772029859,0.13193012,2673.2,2672.5,3.74168]
[1739772030495,0.13193012,2673.2,2672.8,3.74133]
[1739772030833,0.5693,2673.3,2672.9,3.74123]
[1739772031006,0.13193012,2673.1,2672.9,3.74123]
[1739772031304,0.276,2673.2,2672.8,7.48267]
[1739772031460,0.276,2673.2,2672.8,3.74131]
[1739772031665,0.13060832,2673.0,2672.8,3.74131]
[1739772031862,0.276,2673.2,2672.7,0.815]
[1739772032169,0.276,2673.2,2672.6,3.74155]
[1739772032389,0.13067129,2673.1,2672.6,3.74155]
[1739772032565,0.13067129,2673.1,2672.8,3.74136]
[1739772032899,0.13067129,2673.1,2672.6,7.48315]
[1739772033042,0.13067129,2673.1,2672.6,3.74155]
[1739772033243,0.5693,2673.0,2672.3,3.0]
[1739772033441,0.5693,2673.0,2672.3,6.74197]
[1739772033701,0.13059933,2672.9,2672.3,10.48398]
[1739772033859,0.13059933,2672.9,2672.4,3.74194]
[1739772034690,0.13059933,2672.9,2672.5,3.74178]
[1739772034861,0.13059933,2672.9,2672.3,6.74197]
[1739772035248,0.5693,2672.8,2672.4,3.74182]
[1739772035592,0.5693,2672.8,2672.3,6.74197]
[1739772035757,0.13059933,2672.7,2672.2,3.0]
[1739772036076,0.13059933,2672.7,2672.3,3.74209]
[1739772036290,0.5693,2672.8,2672.3,3.74209]
[1739772036448,0.13059933,2672.6,2672.3,3.74209]
[1739772036789,0.13059933,2672.5,2672.4,3.74195]
[1739772036942,0.5693,2672.8,2672.3,3.74209]
[1739772037142,0.13059933,2672.7,2672.3,3.74201]
[1739772037389,0.5693,2672.8,2672.3,3.74201]
[1739772037567,0.13059933,2672.7,2672.3,7.48402]
[1739772037760,0.5693,2672.8,2672.3,3.74201]
[1739772037955,0.13059933,2672.7,2672.1,6.74228]
[1739772038399,0.13059933,2672.7,2672.2,3.74221]
[1739772038686,0.5693,2672.6,2671.9,3.74255]
[1739772038887,0.5693,2672.6,2671.9,7.48508]
[1739772039094,0.13041942,2672.5,2671.9,7.48508]
[1739772039453,0.5693,2672.4,2671.9,3.74253]
[1739772039880,0.5693,2672.4,2672.0,3.74241]
[1739772040194,0.5693,2672.4,2671.9,3.74253]
[1739772040377,0.5693,2672.4,2671.7,3.74293]
[1739772040577,0.5693,2672.2,2671.8,3.74275]
[1739772040778,0.5693,2672.2,2671.7,3.74293]
[1739772041195,0.13041942,2672.1,2671.8,0.85242738]
[1739772041402,0.276,2672.5,2672.3,3.74195]
[1739772041704,0.276,2672.7,2672.1,3.0]
[1739772041993,0.276,2672.7,2672.5,3.74173]
[1739772042491,0.5693,2673.0,2672.7,3.74153]
[1739772042696,0.8453,2673.0,2672.3,0.815]
[1739772042993,0.12942969,2672.9,2672.6,3.74167]
[1739772043397,0.12942969,2672.9,2672.6,3.74155]
[1739772043555,0.12942969,2672.9,2672.3,0.815]
[1739772043556,0.12942969,2672.9,2672.8,3.74139]
[1739772043990,0.276,2673.1,2673.0,3.74111]
[1739772044166,0.40542969,2673.1,2673.0,3.74111]
[1739772044774,0.12942969,2673.1,2673.0,3.74111]
[1739772044960,0.5693,2673.4,2673.1,3.74085]
[1739772045163,0.5693,2673.4,2673.2,3.74073]
[1739772045371,0.5693,2673.8,2673.3,3.74069]
[1739772045590,0.276,2673.7,2673.3,3.7406]
[1739772046783,0.276,2673.7,2672.9,4.53437]
[1739772047001,0.276,2673.7,2672.9,8.27553]
[1739772047171,0.276,2673.7,2673.0,3.74109]
[1739772047561,0.5693,2673.6,2672.9,3.74124]
[1739772048162,0.5693,2673.6,2672.6,7.48325]
[1739772048390,4.17645914,2673.6,2672.5,3.7932]
[1739772048665,4.17645914,2673.6,2672.6,3.74154]
[1739772048903,4.17645914,2673.6,2672.8,3.74134]
[1739772050306,4.17645914,2673.6,2672.8,3.74134]
[1739772050606,4.17645914,2673.6,2672.6,3.74159]
[1739772051103,4.17645914,2673.6,2672.7,3.74153]
[1739772051293,4.17645914,2673.6,2672.9,3.74114]
[1739772051683,4.17645914,2673.6,2672.9,7.48232]
[1739772051982,0.5693,2673.6,2672.9,7.48232]
[1739772052370,0.5693,2673.6,2673.0,3.74109]
[1739772052594,0.5693,2673.6,2673.1,3.7409]
[1739772052872,0.5693,2673.6,2673.2,3.74081]
[1739772053071,0.5693,2673.6,2673.0,3.74108]
[1739772053417,0.5693,2673.6,2673.0,3.74103]
[1739772053625,0.8453,2673.6,2673.5,3.74041]
[1739772053788,0.5693,2673.6,2673.3,3.74058]
[1739772053988,0.5693,2673.6,2673.1,7.48179]
[1739772054215,0.5693,2673.6,2673.2,3.7408]
[1739772054610,0.5693,2673.6,2673.3,3.74067]
[1739772054999,0.5693,2673.6,2673.1,3.7409]
[1739772055588,0.5693,2673.6,2673.3,3.74059]
[1739772056019,0.5693,2673.6,2672.8,3.7932]
[1739772056223,0.5693,2673.6,2673.1,3.74087]
[1739772056523,0.5693,2673.6,2673.2,3.74078]
[1739772057189,0.13076125,2673.5,2673.2,3.74078]
[1739772058387,0.13076125,2673.5,2673.3,3.74068]
[1739772058621,0.13076125,2673.5,2673.4,3.74055]
[1739772059627,0.13076125,2673.5,2673.3,3.74068]
[1739772059932,0.13076125,2673.5,2673.4,3.74055]
[1739772060226,0.13076125,2673.5,2672.2,0.7848]
[1739772060428,0.5693,2673.4,2672.2,0.7848]
[1739772060597,0.5693,2673.2,2672.3,3.74199]
[1739772060794,0.5693,2673.0,2672.3,3.74199]
[1739772061007,0.276,2672.9,2672.3,3.74199]
[1739772061315,0.13106701,2672.8,2672.3,3.74199]
[1739772061498,0.13106701,2672.8,2671.9,3.7848]
[1739772061693,0.13106701,2672.8,2672.7,3.74153]
[1739772062098,0.276,2672.9,2672.7,3.74153]
[1739772062298,0.1306713,2672.8,2672.7,3.74153]
[1739772062495,0.276,2672.9,2672.7,3.74153]
[1739772062696,0.276,2672.9,2672.8,3.74139]
[1739772063025,0.276,2672.9,2672.8,4.489682]
[1739772063223,0.5693,2673.3,2672.7,3.74153]
[1739772063429,0.5693,2673.5,2673.1,3.74084]
[1739772064141,0.5693,2673.5,2673.2,3.74077]
[1739772064445,0.5693,2673.5,2673.2,3.74076]
[1739772064622,0.5693,2673.8,2673.7,3.74013]
[1739772064825,0.276,2674.2,2673.7,3.74013]
[1739772064997,0.276,2674.2,2673.5,3.74032]
[1739772065202,0.5693,2674.1,2673.3,3.74061]
[1739772065540,0.5693,2674.1,2673.5,3.74027]
[1739772065836,0.5693,2674.1,2673.7,3.74006]
[1739772066014,0.5693,2674.1,2673.8,3.73994]
[1739772067042,0.5693,2674.4,2673.6,0.55]
[1739772067936,0.5693,2674.4,2674.1,3.73956]
[1739772068532,0.5693,2674.4,2673.9,3.73975]
[1739772069448,0.5693,2674.4,2673.9,7.47953]
[1739772069645,0.5693,2674.4,2673.9,7.47952]
[1739772069947,0.5693,2674.4,2674.1,3.73949]
[1739772070143,0.5693,2674.4,2674.1,7.47896]
[1739772070352,0.5693,2674.4,2674.1,3.73944]
[1739772070524,0.226,2674.6,2674.3,3.73929]
[1739772070950,3.5693,2674.7,2674.1,3.73956]
[1739772071111,3.8453,2674.7,2674.1,3.73956]
[1739772071646,3.8453,2674.7,2674.1,3.73948]
[1739772072055,3.8453,2674.7,2674.2,3.73932]
[1739772072276,3.8453,2674.7,2674.3,3.73916]
[1739772072277,0.1270912,2674.6,2674.3,3.73916]
[1739772072753,0.5693,2674.7,2674.3,7.47838]
[1739772072948,0.1270912,2674.6,2674.3,7.47838]
[1739772073152,0.5693,2674.7,2674.4,3.73913]
[1739772073350,0.1270912,2674.6,2674.3,4.565478]
[1739772073538,0.1270912,2674.6,2674.5,3.73901]
[1739772073738,0.5693,2674.7,2674.4,3.73915]
[1739772074035,0.1270912,2674.6,2674.4,3.18915]
[1739772074351,0.5693,2674.7,2673.7,0.73501473]
[1739772074553,0.5693,2674.5,2673.7,3.74012]
[1739772074716,0.5693,2674.5,2673.7,3.74005]
[1739772075046,0.1270912,2674.4,2673.7,3.74005]
[1739772075538,0.1270912,2674.4,2674.0,3.73962]
[1739772075918,0.1270912,2674.4,2674.1,3.73949]
[1739772076120,0.1270912,2674.4,2674.2,3.73937]
[1739772076319,0.276,2674.7,2674.3,3.73929]
[1739772076532,0.1270912,2674.6,2674.5,3.73901]
[1739772076860,0.276,2675.1,2674.4,3.73911]
[1739772077161,0.1270912,2675.0,2674.4,3.73908]
[1739772077356,0.1270912,2675.0,2674.2,3.60715914]
[1739772077655,0.1270912,2675.0,2674.4,3.73913]
[1739772078453,0.1270912,2675.0,2674.5,3.73901]
[1739772079060,0.8453,2675.2,2674.4,3.73913]
[1739772079354,0.8453,2675.2,2674.4,3.73905]
[1739772079679,0.1283701,2675.1,2674.4,3.73905]
[1739772081065,0.5693,2675.0,2674.4,3.73905]
[1739772081429,0.12878426,2674.9,2674.4,3.73905]
[1739772082056,0.12878426,2674.9,2674.6,3.73883]
[1739772082765,0.12878426,2674.9,2674.7,3.73873]
[1739772082935,0.12878426,2674.9,2674.6,3.73883]
[1739772083266,0.12878426,2674.9,2674.5,3.73901]
[1739772083629,0.12878426,2674.9,2674.6,3.73887]
[1739772084258,0.12878426,2674.9,2674.6,3.73878]
[1739772084968,0.12878426,2674.9,2674.2,8.11759914]
[1739772085141,0.12878426,2674.9,2674.4,3.73908]
[1739772085571,0.12878426,2674.9,2674.5,3.73889]
[1739772085765,0.12878426,2674.9,2674.7,3.73864]
[1739772086062,0.5693,2675.0,2674.7,3.73864]
[1739772086283,0.5693,2675.5,2674.6,3.73877]
[1739772086566,0.276,2675.3,2674.8,3.73853]
[1739772087387,0.12882026,2675.2,2674.8,3.73853]
[1739772087530,0.276,2675.3,2674.8,3.73853]
[1739772087732,0.12882026,2675.2,2674.8,3.73853]
[1739772087933,0.276,2675.3,2674.8,3.73853]
[1739772088134,0.12882026,2675.2,2674.9,3.73833]
[1739772088436,0.276,2675.3,2674.9,3.73833]
[1739772088638,0.12882026,2675.1,2674.9,3.73833]
[1739772088864,0.5693,2675.5,2674.7,3.73873]
[1739772089069,0.12882026,2675.0,2674.9,3.73845]
[1739772089331,0.8453,2675.5,2674.9,3.73845]
[1739772089563,0.12900028,2675.4,2674.8,3.73859]
[1739772089935,0.12900028,2675.4,2674.7,3.73862]
[1739772090241,0.5693,2675.3,2674.3,7.49299]
[1739772090453,0.5693,2675.3,2674.4,3.73906]
[1739772090660,0.5693,2675.1,2674.5,3.73898]
[1739772091784,0.12950428,2675.0,2674.5,3.73893]
[1739772092167,0.12950428,2675.0,2674.5,3.73901]
[1739772092953,0.12950428,2675.0,2674.5,7.47794]
[1739772093153,0.12950428,2675.0,2674.3,0.7537]
[1739772093350,0.12950428,2675.0,2674.7,3.73867]
[1739772093550,0.12950428,2675.0,2674.7,7.47733]
[1739772093757,0.12950428,2675.0,2674.9,3.73845]
[1739772094281,0.12950428,2675.0,2674.8,3.73857]
[1739772094483,0.12950428,2675.0,2674.8,3.7385]
[1739772094686,0.12950428,2675.0,2674.9,3.73845]
[1739772095945,0.5693,2675.4,2675.2,3.73795]
[1739772096248,0.5693,2675.4,2674.9,3.73833]
[1739772096249,0.12934229,2675.0,2674.9,3.73833]
[1739772096450,0.5693,2675.4,2674.9,3.73833]
[1739772096758,0.12934229,2675.3,2675.0,3.73825]
[1739772096951,0.12934229,2675.3,2675.2,3.73803]
[1739772097173,0.12934229,2675.3,2674.9,3.73838]
[1739772097372,0.12934229,2675.3,2675.0,3.73824]
[1739772097853,0.12934229,2675.3,2674.9,3.73838]
[1739772098164,0.12934229,2675.3,2674.9,3.73834]
[1739772098785,0.12934229,2675.3,2675.0,3.73826]
[1739772099583,0.12934229,2675.3,2674.8,3.73853]
[1739772099742,0.12934229,2675.3,2675.2,3.73803]
[1739772100457,0.5693,2675.4,2675.2,3.73803]
[1739772100863,0.12976522,2675.3,2675.0,3.73826]
[1739772101181,0.5693,2675.4,2675.0,3.73826]
[1739772101486,0.12976522,2675.2,2675.0,3.73826]
[1739772101687,0.5693,2675.4,2675.0,3.73826]
[1739772102223,0.5693,2675.2,2674.4,4.49273]
[1739772102354,0.12999019,2675.1,2674.4,3.73903]
[1739772102906,0.5693,2675.0,2674.4,3.73903]
[1739772103266,0.40575624,2674.9,2674.4,3.73903]
[1739772104177,0.40575624,2674.9,2674.2,0.7537]
[1739772104379,0.40575624,2674.9,2674.4,3.73911]
[1739772104582,0.40575624,2674.9,2674.3,3.73916]
[1739772104768,0.40575624,2674.9,2674.4,3.73915]
[1739772104971,0.40575624,2674.9,2674.3,3.73916]
[1739772105456,0.40575624,2674.9,2674.0,3.73966]
[1739772105457,0.5693,2674.8,2674.0,3.73966]
[1739772105652,0.5693,2674.8,2673.6,3.74018]
[1739772105895,0.5693,2674.6,2673.6,3.74018]
[1739772106110,0.5693,2674.6,2673.5,0.7998]
[1739772106299,0.5693,2674.3,2673.5,3.74039]
[1739772106503,0.5693,2674.3,2673.3,3.7406]
[1739772106703,3.60715914,2674.1,2673.3,3.7406]
[1739772107014,3.60715914,2673.8,2672.9,3.74117]
[1739772107316,0.69828208,2673.7,2672.9,3.74114]
[1739772107677,0.5693,2673.7,2672.9,3.74114]
[1739772107878,0.5693,2673.7,2673.2,3.7408]
[1739772108075,0.12680306,2673.6,2673.4,3.74049]
[1739772108294,0.276,2673.6,2673.4,3.74041]
[1739772108488,0.12680306,2673.5,2673.4,3.74041]
[1739772109278,0.5693,2673.7,2673.4,3.74041]
[1739772109520,0.5693,2673.7,2673.2,3.74069]
[1739772109819,0.12692918,2673.6,2673.0,3.74104]
[1739772109979,0.12692918,2673.6,2673.1,3.74091]
[1739772110413,0.12692918,2673.6,2673.0,3.74104]
[1739772110633,0.5693,2673.5,2672.8,3.74135]
[1739772110842,0.5693,2673.5,2672.7,3.0]
[1739772110843,0.69603098,2673.5,2672.7,3.0]
[1739772111130,0.5693,2673.5,2672.8,3.74131]
[1739772111331,0.5693,2673.5,2672.8,7.48262]
[1739772111530,0.5693,2673.5,2672.9,3.74122]
[1739772111678,0.5693,2673.5,2673.0,3.74104]
[1739772111875,0.5693,2673.5,2673.1,3.74087]
[1739772112323,0.5693,2673.5,2672.9,3.74121]
[1739772112324,0.12663187,2673.4,2672.9,7.48237]
[1739772112477,0.12663187,2673.4,2672.9,3.74116]
[1739772112683,0.5693,2673.5,2673.0,3.741]
[1739772113312,0.12662286,2673.4,2672.8,3.74134]
[1739772113535,0.12662286,2673.4,2672.9,3.74125]
[1739772113885,0.12662286,2673.4,2673.0,3.74101]
[1739772114281,0.12662286,2673.4,2672.9,3.74125]
[1739772114686,0.12662286,2673.4,2672.9,7.48242]
[1739772114883,0.12662286,2673.4,2672.9,3.74117]
[1739772115284,0.12662286,2673.4,2672.8,3.74132]
[1739772115721,0.12662286,2673.4,2672.9,3.74124]
[1739772116234,0.12662286,2673.4,2672.7,3.74149]
[1739772116529,0.5693,2673.3,2672.4,3.74182]
[1739772116733,0.5693,2673.3,2672.5,3.74175]
[1739772116883,0.5693,2673.1,2672.3,3.74201]
[1739772117275,0.5693,2672.9,2672.2,3.74215]
[1739772117585,0.12646066,2672.8,2672.2,3.74214]
[1739772117925,0.5693,2672.9,2672.2,7.48424]
[1739772118090,0.5693,2672.9,2672.2,3.7421]
[1739772118290,0.5693,2672.9,2672.2,7.48425]
[1739772118601,0.12646066,2672.8,2672.2,3.7421]
[1739772118911,0.5693,2672.9,2672.2,7.48424]
[1739772119283,0.12646066,2672.8,2672.2,3.7421]
[1739772119723,0.5693,2672.9,2672.2,3.7421]
[1739772120106,0.12272108,2672.8,2672.0,3.74238]
[1739772120308,0.5693,2672.7,2672.0,3.74238]
[1739772120514,0.5693,2672.7,2671.8,3.74269]
[1739772120690,0.5693,2672.5,2672.1,3.74234]
[1739772120890,0.5693,2672.5,2671.8,0.374269]
[1739772121088,0.5693,2672.5,2672.3,7.48406]
[1739772121322,0.12506535,2672.4,2672.3,3.74201]
[1739772121826,0.5693,2672.7,2672.3,3.74201]
[1739772122124,0.5693,2672.7,2672.0,0.8259]
[1739772122324,0.5693,2672.7,2672.3,3.742]
[1739772122531,0.5693,2672.7,2672.4,3.74181]
[1739772122831,0.5693,2672.7,2672.4,3.74183]
[1739772123423,5.9093,2672.9,2672.2,3.74223]
[1739772123721,6.1853,2672.9,2672.8,3.74139]
[1739772123921,0.5693,2672.9,2672.5,7.4834]
[1739772124230,0.5693,2672.9,2672.4,3.74194]
[1739772125235,0.5693,2672.9,2672.5,3.74177]
[1739772125436,0.5693,2672.9,2672.6,3.74167]
[1739772125635,0.5693,2672.9,2672.7,3.74145]
[1739772125957,0.276,2673.3,2673.1,3.74084]
[1739772126158,0.276,2673.4,2673.2,3.74076]
[1739772126361,0.5693,2673.7,2673.2,3.74083]
[1739772126656,0.5693,2673.7,2673.0,3.74107]
[1739772126859,0.276,2673.6,2673.2,3.74083]
[1739772127063,0.276,2673.6,2673.1,3.74097]
[1739772127250,0.12547096,2673.5,2673.0,3.74101]
[1739772127563,0.5693,2673.4,2672.9,3.0]
[1739772127731,0.5693,2673.4,2673.0,3.7411]
[1739772127926,0.5693,2673.4,2673.2,3.74083]
[1739772127927,0.12569624,2673.3,2673.2,3.74083]
[1739772128127,0.12569624,2673.3,2673.1,3.74096]
[1739772128441,0.12569624,2673.3,2672.7,3.74141]
[1739772128627,0.12569624,2673.3,2672.8,3.0]
[1739772129454,0.5693,2673.2,2672.7,3.0]
[1739772129659,0.12566921,2673.1,2672.5,3.74179]
[1739772129961,0.12566921,2673.1,2672.5,3.74172]
[1739772130172,0.12566921,2673.1,2672.5,7.48345]
[1739772130376,0.12566921,2673.1,2672.5,7.48344]
[1739772130524,0.12566921,2673.1,2672.5,7.48343]
[1739772130727,0.5693,2673.0,2672.5,3.74171]
[1739772131136,0.5693,2673.0,2672.4,6.74194]
[1739772131348,0.12566921,2672.9,2672.3,3.74204]
[1739772131629,0.5693,2672.7,2672.2,3.74216]
[1739772131845,0.12558815,2672.6,2672.2,6.74216]
[1739772132166,0.5693,2672.7,2672.3,3.742]
[1739772132394,0.5693,2672.7,2672.2,6.74216]
[1739772132547,0.5693,2672.7,2672.2,3.74216]
[1739772132755,0.5693,2672.7,2672.0,3.74245]
[1739772132963,0.12558815,2672.6,2672.1,3.74225]
[1739772133158,0.12558815,2672.6,2671.9,3.0]
[1739772133363,0.12558815,2672.6,2672.3,3.742]
[1739772133564,0.12558815,2672.6,2672.1,3.74228]
[1739772133960,0.12558815,2672.6,2672.3,3.74206]
[1739772134491,0.12558815,2672.6,2672.3,3.74209]
[1739772134985,0.12558815,2672.6,2672.1,3.74228]
[1739772135149,0.12558815,2672.6,2672.3,3.74201]
[1739772135350,0.12558815,2672.6,2672.3,7.48402]
[1739772135654,0.12558815,2672.6,2672.4,3.74188]
[1739772136051,0.12558815,2672.6,2672.1,3.74227]
[1739772136256,0.12558815,2672.6,2672.4,3.74193]
[1739772136787,0.12558815,2672.6,2672.3,3.74199]
[1739772136954,0.12558815,2672.6,2672.4,3.74194]
[1739772137354,0.12558815,2672.6,2672.3,3.74199]
[1739772138698,0.12558815,2672.6,2672.2,3.74212]
[1739772138893,0.12558815,2672.6,2672.1,0.803489]
[1739772139192,0.12558815,2672.6,2672.3,3.74196]
[1739772139395,0.12558815,2672.6,2672.3,3.74202]
[1739772140395,0.12558815,2672.6,2672.3,7.48402]
[1739772140569,0.12558815,2672.6,2672.3,3.74201]
[1739772142291,0.12558815,2672.6,2671.9,3.74255]
[1739772142500,0.5693,2672.5,2671.9,3.74255]
[1739772142797,0.12544393,2672.4,2671.9,7.48512]
[1739772142962,0.12544393,2672.4,2671.9,3.74255]
[1739772143698,0.12544393,2672.4,2672.2,3.74221]
[1739772143906,0.12544393,2672.4,2672.2,3.74214]
[1739772144675,0.12544393,2672.4,2672.3,3.74209]
[1739772145292,0.276,2672.6,2672.4,3.74184]
[1739772145592,0.276,2672.6,2672.3,3.74209]
[1739772147393,0.276,2672.6,2672.4,3.74182]
[1739772147974,0.276,2672.6,2672.3,3.742]
[1739772148692,0.276,2672.6,2672.3,7.48402]
[1739772148896,0.276,2672.6,2672.3,3.742]
[1739772149106,0.12495715,2672.5,2672.0,3.8275]
[1739772149292,0.12495715,2672.5,2672.4,3.74195]
[1739772149497,0.12495715,2672.5,2672.3,3.74202]
[1739772150015,0.12495715,2672.5,2672.2,3.74218]
[1739772150713,0.12495715,2672.5,2672.3,3.74208]
[1739772151013,0.12495715,2672.5,2672.4,3.74195]
[1739772154917,0.8453,2672.8,2672.4,3.74195]
[1739772155121,0.12520957,2672.7,2672.1,3.74235]
[1739772155328,0.12520957,2672.7,2672.4,3.74189]
[1739772155508,0.12520957,2672.7,2672.2,7.48428]
[1739772155699,0.12520957,2672.7,2672.3,3.74198]
[1739772155886,0.8453,2672.8,2672.3,3.74199]
[1739772156087,0.12520957,2672.7,2672.3,3.74199]
[1739772156286,0.12520957,2672.7,2672.2,3.74212]
[1739772156287,0.8453,2672.8,2672.2,3.74221]
[1739772156526,0.12520957,2672.7,2672.2,7.48437]
[1739772157123,0.12520957,2672.7,2672.2,7.48431]
[1739772157327,0.12520957,2672.7,2672.2,3.74215]
[1739772157623,0.40120957,2672.7,2672.1,3.7423]
[1739772157925,0.40120957,2672.7,2672.2,3.74218]
[1739772158122,0.40120957,2672.7,2672.0,0.8275]
[1739772158327,0.40120957,2672.7,2672.0,3.74238]
[1739772158637,0.40120957,2672.7,2671.8,0.7856]
[1739772158638,0.5693,2672.6,2671.8,3.74274]
[1739772159185,0.5693,2672.4,2671.8,3.74274]